Cogmind - Beta 13 @@@ ROGUE MODE // 2024.04.15 @ 19:20:24 Player: Person Guy Result: Destroyed by B-86 Titan with Railgun Performance ------------- Evolutions (6) 3000 Regions Visited (12) 2400 Robots Destroyed (219) 1095 Value Destroyed (9773) 9773 Prototype IDs (17) 340 Alien Tech Used (0) 0 Bonus (3981) 3981 TOTAL SCORE: 20589 Bonus ------- High Alert Combat Kills 2200 Follower Combat Kills 320 Entered Garrisons 400 Used RIF Installer 1000 Aligned with FarCom 300 Friendly Fire -239 Cogmind --------- Core Integrity 0/1150 Matter 219/300 Energy 98/100 System Corruption 19% Temperature Cool (0) Movement Core (50) Location -4/Factory Parts ------- > --- POWER (2) -------- (None) > --- PROPULSION (4) --- (None) > --- UTILITY (9) ------ Improved Hacking Suite Advanced Hacking Suite > --- WEAPON (4) ------- (None) > --- INVENTORY (5) ---- Armored Medium Treads Advanced Heat Sink Relay Coupler [NC] (33) Relay Coupler [Sentry] (23) Peak State ------------ > --- POWER ------------ Light Angular Momentum Engine > --- PROPULSION ------- Armored Heavy Treads Advanced Heavy Treads > --- UTILITY ---------- Advanced Heat Sink Large Storage Unit Advanced Signal Interpreter Advanced Targeting Computer Layered Light Armor Plating Improved Hacking Suite Advanced Hacking Suite Improved System Shield Relay Coupler [Sentry] > --- WEAPON ----------- Long-range Proton Cannon Railgun Heavy Flak Cannon Antimatter Cannon > --- INVENTORY -------- Fusion Compressor Armored Medium Treads Armored Medium Treads Advanced Heat Sink Improved Coolant Injector Large Storage Unit Improved Light Armor Plating Relay Coupler [NC] Relay Coupler [NC] Relay Coupler [Grunt] Relay Coupler [Sentry] Relay Coupler [Hunter] Antimatter Cannon [Rating: 104] Favorites ----------- Power Heavy Deuterium Engine Engine Heavy Deuterium Engine Power Core Light Nuclear Core Reactor Particle Reactor Propulsion Improved Carbon-fiber Leg Treads Improved Treads Leg Improved Carbon-fiber Leg Hover Unit Gyrokinetic Inverter Flight Unit Flight Unit Utility Large Storage Unit Device Coolant Injector Storage Large Storage Unit Processor Advanced Targeting Computer Hackware Hacking Suite Protection Hardened Light Armor Plating Weapon Precision Assault Rifle Energy Gun Quantum Rifle Energy Cannon Heavy Ion Cannon Ballistic Gun Precision Assault Rifle Ballistic Cannon Linear Accelerator Launcher Rocket Launcher Special Weapon Remote Datajack Build | -11 -10 -10 -10 -9 -8 -7 -6 -6 -6 -6 -5 -4 ------- Run | Yrd Mat Min Exi Min Mat Fac Fac Gar Fac Gar Fac Fac Slots Evolved 12 | . . . . . 4 2 2 . . . 2 2 Power 1 | . . . . . . . . . . . . 1 Propulsion 2 | . . . . . 1 . 1 . . . . . Utility 7 | . . . . . 2 2 1 . . . 1 1 Weapon 2 | . . . . . 1 . . . . . 1 . Parts Attached 182 | 6 12 2 . . 22 51 18 26 14 5 12 14 Power 18 | 1 3 . . . 3 6 1 1 1 1 . 1 Engine 8 | 1 3 . . . . 2 1 . . 1 . . Core 8 | . . . . . 3 4 . . . . . 1 Reactor 2 | . . . . . . . . 1 1 . . . Propulsion 42 | 2 6 . . . 3 15 7 5 . 1 1 2 Treads 20 | 2 3 . . . 3 8 . 2 . 1 1 . Leg 20 | . 2 . . . . 7 7 3 . . . 1 Wheel . | . . . . . . . . . . . . . Hover 1 | . . . . . . . . . . . . 1 Flight 1 | . 1 . . . . . . . . . . . Utility 49 | 1 1 1 . . 5 11 3 5 7 3 8 4 Device 17 | . . 1 . . 2 2 1 4 2 1 2 2 Storage 2 | 1 1 . . . . . . . . . . . Processor 5 | . . . . . 1 2 . . 1 . 1 . Hackware 15 | . . . . . . 2 . 1 4 2 5 1 Protection 10 | . . . . . 2 5 2 . . . . 1 Artifact . | . . . . . . . . . . . . . Weapon 73 | 2 2 1 . . 11 19 7 15 6 . 3 7 Energy Gun 11 | . . . . . 3 6 . 1 1 . . . Energy Cannon 10 | . . . . . 4 1 . 1 2 . 1 1 Ballistic Gun 26 | 2 2 . . . 3 7 5 4 . . 1 2 Ballistic Cannon 16 | . . . . . . 3 . 7 1 . 1 4 Launcher 9 | . . 1 . . 1 2 2 2 1 . . . Special Weapon 1 | . . . . . . . . . 1 . . . Impact Weapon . | . . . . . . . . . . . . . Slashing Weapon . | . . . . . . . . . . . . . Piercing Weapon . | . . . . . . . . . . . . . Special Melee Weapon . | . . . . . . . . . . . . . Unidentified Prototypes 10 | . . 1 . . 1 5 1 1 . . . 1 Parts Lost 37 | . 7 . . . 5 5 1 . . 2 . 17 Power 6 | . 2 . . . 2 1 . . . . . 1 Propulsion 8 | . 3 . . . 2 1 . . . . . 2 Utility 12 | . . . . . . 2 1 . . 2 . 7 Weapon 11 | . 2 . . . 1 1 . . . . . 7 Highest Loss Streak 10 | . 2 . . . 3 3 1 . . 1 . 10 To Critical Strikes 2 | . . . . . . . . . . . . 2 Average Slot Usage (%) 86 | . 77 85 85 85 97 90 95 90 83 81 80 62 Engine 5 | . 12 14 14 14 1 5 . 5 . 4 5 2 Core 1 | . . . . . 7 . 5 . . . . . Treads 14 | . 21 28 28 28 26 11 . 1 13 12 10 6 Leg 5 | . 1 . . . . 10 25 21 . . . . Device 6 | . . . . . 8 8 8 12 10 6 5 4 Storage 7 | . 14 14 14 14 9 7 6 6 6 6 5 3 Processor 7 | . . . . . 8 12 6 6 5 6 9 9 Hackware 7 | . . . . . . 1 13 14 21 21 18 18 Protection 3 | . . . . . 7 7 5 4 . . . . Energy Gun 2 | . . . . . 1 3 2 . 3 6 2 . Energy Cannon 2 | . . . . . 12 2 . . 1 . 1 3 Ballistic Gun 10 | . 25 15 14 14 12 12 13 7 2 . 2 3 Ballistic Cannon 3 | . . . . . . 2 3 4 5 6 8 4 Launcher 1 | . . 12 14 14 . . . . . . . . Special Weapon 1 | . . . . . . . . . 2 6 5 2 Naked Turns . | . . . . . . . . . . . . . Heaviest Build 65 | 12 27 28 28 28 49 59 56 62 65 56 59 65 Greatest Support 130 | 40 46 46 46 46 69 68 72 130 130 130 130 130 Greatest Overweight (x) 8 | . 8 . . . 1 1 1 . . . . 1 Average Overweight (x) . | . . . . . . . . . . . . . Largest Inventory Capacity 15 | 8 15 15 15 15 15 15 15 15 15 15 15 15 Average Capacity 14 | 6 11 15 15 15 15 15 15 15 15 15 15 11 Most Carried 15 | 3 11 13 15 14 15 15 15 15 15 12 15 15 Average Carried 12 | . 4 11 13 14 13 13 14 12 13 11 11 10 Final Capacity 15 | 8 15 15 15 15 15 15 15 15 15 15 15 5 Final Carried 15 | 1 10 13 14 14 14 13 13 15 12 10 14 4 Class Distribution -------------------- 19% | Gunner 18% | Skirmisher 18% | Bothacker-Skirmisher 17% | Mutant 17% | Hacker-Skirmisher 4% | Hacker-Gunner Dominant Class ---------------- Mutant | -10/Materials Mutant | -10/Mines Mutant | -10/Exiles Mutant | -9/Mines Skirmisher | -8/Materials Gunner | -7/Factory Hacker-Skirmisher | -6/Factory Hacker-Skirmisher | -6/Garrison Hacker-Skirmisher | -6/Factory Bothacker-Skirmisher | -6/Garrison Bothacker-Skirmisher | -5/Factory Bothacker-Skirmisher | -4/Factory Resources | -11 -10 -10 -10 -9 -8 -7 -6 -6 -6 -6 -5 -4 ----------- Run | Yrd Mat Min Exi Min Mat Fac Fac Gar Fac Gar Fac Fac Matter Collected 5668 | 230 319 74 . 4 421 1512 584 790 678 303 240 513 Remotely . | . . . . . . . . . . . . . Salvage Created 9040 | . 509 131 . . 1484 2831 785 1302 917 257 97 727 Parts 473 | . 30 5 . . 99 161 36 46 56 13 6 21 Haulers Intercepted 15 | . 1 . . . 2 8 2 . 1 . . 1 Recyclers Shooed 11 | . 2 . . . 3 1 1 . . . . 4 Parts Field Recycled . | . . . . . . . . . . . . . Retrieved Matter . | . . . . . . . . . . . . . Parts Self-Destructed . | . . . . . . . . . . . . . Prevented . | . . . . . . . . . . . . . Kills | -11 -10 -10 -10 -9 -8 -7 -6 -6 -6 -6 -5 -4 ------- Run | Yrd Mat Min Exi Min Mat Fac Fac Gar Fac Gar Fac Fac Combat Hostiles Destroyed 168 | . 12 4 . . 27 48 16 29 13 10 3 6 Guns 85 | . 12 1 . . 7 26 8 17 6 5 2 1 Cannons 60 | . . . . . 15 17 2 8 7 5 1 5 AOE 23 | . . 3 . . 5 5 6 4 . . . . Classes Destroyed 17 | . 4 . . . 7 4 1 1 . . . . Worker 11 | . 1 . . . 1 3 2 . 3 . . 1 Builder 4 | . . . . . 2 1 . . 1 . . . Tunneler 1 | . . . . . . 1 . . . . . . Hauler 15 | . 1 . . . 2 8 2 . 1 . . 1 Recycler 10 | . . . . . 2 4 1 . . . . 3 Operator 4 | . . . . . 2 1 . . 1 . . . Watcher 5 | . . . . . 1 1 . 1 2 . . . Swarmer 33 | . 3 . . . 4 9 4 3 2 7 1 . Cutter 1 | . . . . . . . . 1 . . . . Grunt 70 | . 9 4 . . 10 14 8 17 5 2 . 1 Brawler 7 | . . . . . . 6 . . 1 . . . Duelist 3 | . . . . . . 2 . . 1 . . . Protector 1 | . . . . . . . 1 . . . . . Sentry 17 | . . . . . 6 6 . 2 1 1 . 1 Specialist 9 | . . . . . 2 3 . 4 . . . . Hunter 14 | . . . . . 5 . 1 2 2 . 2 2 Programmer 13 | . . . . . . 8 2 . 1 . . 2 Thug 1 | . . . . . . 1 . . . . . . Best Kill Streak 13 | . 3 2 . . 13 6 5 11 7 3 1 4 Combat Bots Only 11 | . 3 2 . . 9 5 5 11 4 3 1 2 Max Kills in Single Turn 4 | . 2 1 . . 4 3 3 2 2 1 1 1 Gunslinging 1 | . . . . . . 1 . . . . . . Exploded 3 | . . 1 . . 2 2 3 2 . . . . Melee . | . . . . . . . . . . . . . Uniques/NPCs Destroyed . | . . . . . . . . . . . . . Combat | -11 -10 -10 -10 -9 -8 -7 -6 -6 -6 -6 -5 -4 -------- Run | Yrd Mat Min Exi Min Mat Fac Fac Gar Fac Gar Fac Fac Hostile Shots Fired 1313 | . 107 9 . . 155 314 77 153 55 87 12 344 Missed 432 | . 23 1 . . 52 102 29 61 18 24 3 119 Damage Taken 13550 | . 897 121 . . 1446 2950 829 1430 614 884 182 4197 Core 2233 | . 170 28 . . 276 300 46 94 49 52 56 1162 Absorbed by Shields 50 | . . . . . . . . 50 . . . . Regen/Repaired (Parts) 607 | . . . . . . . . . . . 607 . Core Remaining (%) 65 | 100 . . . 20 49 57 . . . 71 94 . Volleys Fired 506 | . 64 7 . . 71 105 37 80 35 53 10 44 Largest 4 | . 2 2 . . 3 3 3 3 3 2 3 4 Hottest 254 | . 40 53 . . 164 156 171 115 254 160 213 209 Shots Fired 1197 | . 100 14 . . 202 308 90 190 94 79 16 104 Gun 761 | . 100 9 . . 110 228 64 123 50 45 4 28 Cannon 391 | . . . . . 88 75 20 61 37 29 6 75 Launcher 26 | . . 5 . . 4 5 6 6 . . . . Special 19 | . . . . . . . . . 7 5 6 1 Kinetic 821 | . 100 9 . . 85 216 63 172 59 29 7 81 Thermal 306 | . . . . . 113 87 21 12 17 45 3 8 Explosive 26 | . . 5 . . 4 5 6 6 . . . . Electromagnetic 25 | . . . . . . . . . 11 . . 14 Robot Hit Streak 46 | . 12 5 . . 11 46 13 21 9 6 6 9 Robot Miss Streak 16 | . 5 2 . . 3 7 16 2 3 4 2 7 Penetration Max 1 | . . . . . . 1 . . . . . 1 Secondary Targets 8 | . 2 . . . . 6 . . . . . . Max Gunslinging Chain 2 | . 1 . . . . 2 . . . . . . Autonomous 120 | . . . . . . . . 86 34 . . . Shots Hit Robots 791 | . 65 9 . . 128 223 56 132 64 28 9 77 Core Hits 456 | . 26 7 . . 66 131 61 63 33 10 5 54 Critical Kills 4 | . . . . . . 3 . . 1 . . . Critical Parts Destroyed 2 | . . . . . . 1 . 1 . . . . Critical Strikes 20 | . . . . . 3 8 . 4 3 1 . 1 Burn 4 | . . . . . 3 1 . . . . . . Destroy 6 | . . . . . . 4 . 1 1 . . . Blast 10 | . . . . . . 3 . 3 2 1 . 1 Melee Attacks . | . . . . . . . . . . . . . Impact . | . . . . . . . . . . . . . Slashing . | . . . . . . . . . . . . . Piercing . | . . . . . . . . . . . . . Sneak Attacks . | . . . . . . . . . . . . . Combat Hostiles . | . . . . . . . . . . . . . Follow-up Attacks . | . . . . . . . . . . . . . Damage Inflicted 21630 | . 718 257 . . 2913 5663 2260 4255 1913 978 139 2534 Guns 10803 | . 713 50 . . 1070 3397 957 2495 1151 461 40 469 Cannons 7500 | . . . . . 1438 1534 222 889 762 517 99 2039 Explosions 3259 | . . 207 . . 402 719 1081 850 . . . . Melee . | . . . . . . . . . . . . . Ramming 68 | . 5 . . . 3 13 . 21 . . . 26 Kinetic 12914 | . 713 50 . . 730 3207 863 3384 1430 517 111 1909 Thermal 4939 | . . . . . 1778 1834 316 . 263 461 28 259 Explosive 3149 | . . 207 . . 402 609 1081 850 . . . . Electromagnetic 560 | . . . . . . . . . 220 . . 340 Impact . | . . . . . . . . . . . . . Slashing . | . . . . . . . . . . . . . Piercing . | . . . . . . . . . . . . . Highest Corruption 19 | . . . . . . 18 1 7 8 8 . 19 Average Corruption 8 | . . . . . . 10 1 2 7 8 . 9 Corruption Purged 1 | . . . . . . . . 1 . . . . Corruption Blocked . | . . . . . . . . . . . . . Effects 228 | . . . . . . 126 . 5 45 32 . 20 Message Errors 50 | . . . . . . 27 . 1 9 9 . 4 Matter Fused 57 | . . . . . . 32 . 3 14 6 . 2 Heat Flow Errors 23 | . . . . . . 14 . . 6 2 . 1 Energy Discharges 28 | . . . . . . 17 . 1 3 5 . 2 Parts Rejected 2 | . . . . . . 1 . . . . . 1 Parts Fused 5 | . . . . . . 4 . . . 1 . . Data Loss (minor) 29 | . . . . . . 16 . . 8 2 . 3 Data Loss (major) 8 | . . . . . . 2 . . 1 3 . 2 Misfires 11 | . . . . . . 5 . . 4 1 . 1 Alerts 3 | . . . . . . 2 . . . 1 . . Misdirections 4 | . . . . . . 1 . . . . . 3 Weapon Failures 8 | . . . . . . 5 . . . 2 . 1 Overload Shots . | . . . . . . . . . . . . . Overflow Damage 184 | . . . . . 23 45 . 21 . 67 . 28 Projectiles 113 | . . . . . 5 13 . . . 67 . 28 Explosions 71 | . . . . . 18 32 . 21 . . . . Melee . | . . . . . . . . . . . . . Knockbacks 49 | . . . . . . 2 1 9 3 3 1 30 Impact . | . . . . . . . . . . . . . Kinetic 44 | . . . . . . 1 1 9 3 3 1 26 Secondary 5 | . . . . . . 1 . . . . . 4 Self-Inflicted Damage 338 | . . 28 . . 10 183 . 109 . . . 8 Shots 9 | . . 1 . . 1 4 . 3 . . . . Rammed 8 | . 2 . . . 1 1 . . . . . 4 Targets Rammed 12 | . 2 . . . 1 1 . 4 . . . 4 Kicked 4 | . . . . . . . . 4 . . . . Crushed . | . . . . . . . . . . . . . Highest Temperature 300 | . 12 34 . . 300 232 199 168 252 197 120 157 Average Temperature 76 | . 4 18 . . 83 79 78 54 78 98 64 51 Received Heat Transfer 2494 | . 387 54 . . 351 459 108 358 144 111 9 513 Effects 3 | . . . . . 3 . . . . . . . Interference 3 | . . . . . 3 . . . . . . . Siege Activations . | . . . . . . . . . . . . . Robots Corrupted 1 | . . . . . . . . . . . . 1 Combat Hostiles . | . . . . . . . . . . . . . Parts Fried 1 | . . . . . . . . . 1 . . . Impact Corruptions . | . . . . . . . . . . . . . Robots Melted . | . . . . . . . . . . . . . Combat Hostiles . | . . . . . . . . . . . . . Parts Melted 9 | . . . . . 5 2 . . 1 1 . . Heat Transferred 7956 | . . . . . 3404 3076 255 . 333 592 37 259 Parts Sabotaged 1 | . . . . . . . . . 1 . . . Parts Stolen . | . . . . . . . . . . . . . Parts Stripped . | . . . . . . . . . . . . . Power Chain Reactions . | . . . . . . . . . . . . . Alert | -11 -10 -10 -10 -9 -8 -7 -6 -6 -6 -6 -5 -4 ------- Run | Yrd Mat Min Exi Min Mat Fac Fac Gar Fac Gar Fac Fac Peak Influence 1875 | . 175 77 . . 329 1133 883 1875 1106 617 502 165 Initial 984 | . . 14 . . . 149 555 626 984 170 323 83 Average 390 | . 70 27 . . 152 399 722 1210 756 390 325 73 Maximum Alert Level 5 | . . . . . 1 4 3 5 4 2 2 . Low Security (%) 43 | 100 100 100 . 100 63 38 . . . 14 22 100 Level 1 14 | . . . . . 36 9 . . 14 28 42 . Level 2 23 | . . . . . . 38 59 10 18 56 35 . Level 3 11 | . . . . . . 7 40 31 59 . . . Level 4 4 | . . . . . . 6 . 34 7 . . . Level 5 1 | . . . . . . . . 22 . . . . High Security . | . . . . . . . . . . . . . Max Security . | . . . . . . . . . . . . . Squads Dispatched 36 | . 1 . . . 6 14 7 . 4 . . 4 Investigation 5 | . 1 . . . 2 2 . . . . . . Extermination 12 | . . . . . . 8 2 . 1 . . 1 Reinforcement 14 | . . . . . 4 3 2 . 2 . . 3 Assault 5 | . . . . . . 1 3 . 1 . . . Garrison . | . . . . . . . . . . . . . Intercept . | . . . . . . . . . . . . . Searches Triggered . | . . . . . . . . . . . . . Construction Impeded 2 | . . . . . . . 1 . . . . 1 Haulers Reinforced 2 | . . . . . . . 1 . . . . 1 Active Scanning Responses . | . . . . . . . . . . . . . Cargo Convoy Interrupts . | . . . . . . . . . . . . . Stealth | -11 -10 -10 -10 -9 -8 -7 -6 -6 -6 -6 -5 -4 --------- Run | Yrd Mat Min Exi Min Mat Fac Fac Gar Fac Gar Fac Fac Distress Signals 23 | . 2 . . . 9 7 1 1 . . . 3 Communications Jammed . | . . . . . . . . . . . . . Distress Signals . | . . . . . . . . . . . . . Times Spotted 280 | . 24 4 . . 52 74 20 32 19 14 13 28 Peak Tracking Total 9 | . 5 2 . . 8 5 5 5 5 4 5 9 Tactical Retreats 17 | . 1 . . . 3 2 1 . . 3 1 6 Traps | -11 -10 -10 -10 -9 -8 -7 -6 -6 -6 -6 -5 -4 ------- Run | Yrd Mat Min Exi Min Mat Fac Fac Gar Fac Gar Fac Fac Traps Triggered 17 | . 1 . . . 1 10 . 2 . 1 1 1 Indirectly . | . . . . . . . . . . . . . Trap Hack Attempts . | . . . . . . . . . . . . . Triggered . | . . . . . . . . . . . . . Disarmed . | . . . . . . . . . . . . . Reprogrammed . | . . . . . . . . . . . . . Reused . | . . . . . . . . . . . . . Traps Extracted . | . . . . . . . . . . . . . Installed . | . . . . . . . . . . . . . Triggered . | . . . . . . . . . . . . . Machines | -11 -10 -10 -10 -9 -8 -7 -6 -6 -6 -6 -5 -4 ---------- Run | Yrd Mat Min Exi Min Mat Fac Fac Gar Fac Gar Fac Fac Machines Disabled 26 | . . . . . . 8 5 7 3 2 1 . Max in Single Turn 4 | . . . . . . 1 4 2 1 1 1 . Garrison Relay 7 | . . . . . . . . 5 . 2 . . Machines Repaired . | . . . . . . . . . . . . . Machines Dismantled . | . . . . . . . . . . . . . Machines Sabotaged . | . . . . . . . . . . . . . Overloaded Fab Kills . | . . . . . . . . . . . . . Hacking | -11 -10 -10 -10 -9 -8 -7 -6 -6 -6 -6 -5 -4 --------- Run | Yrd Mat Min Exi Min Mat Fac Fac Gar Fac Gar Fac Fac Machines Accessed 26 | . 3 . . . 7 6 1 2 4 1 2 . Terminals 21 | . 3 . . . 7 4 . 2 3 1 1 . Fabricators . | . . . . . . . . . . . . . Repair Stations 2 | . . . . . . 1 . . . . 1 . Recycling Units . | . . . . . . . . . . . . . Scanalyzers 1 | . . . . . . 1 . . . . . . Garrison Access 2 | . . . . . . . 1 . 1 . . . Total Hacks 70 | . 6 . . . 26 8 5 4 15 2 4 . Successful 29 | . 3 . . . 10 1 1 2 7 1 4 . Failed 41 | . 3 . . . 16 7 4 2 8 1 . . Catastrophic 8 | . 2 . . . 4 1 . . 1 . . . Database Lockouts . | . . . . . . . . . . . . . Manual 32 | . 5 . 1 . 13 4 . . 9 . . . Terminals 60 | . 6 . . . 26 6 . 4 14 2 2 . Fabricators . | . . . . . . . . . . . . . Repair Stations 3 | . . . . . . 1 . . . . 2 . Recycling Units . | . . . . . . . . . . . . . Scanalyzers 1 | . . . . . . 1 . . . . . . Garrison Access 6 | . . . . . . . 5 . 1 . . . Terminal Hacks 22 | . 2 . . . 9 1 . 2 5 1 2 . Record 2 | . . . . . . 1 . . . . 1 . Prototype ID Bank 4 | . 1 . . . 1 . . . 2 . . . Open Door 2 | . . . . . . . . 1 . 1 . . Level Access Points 1 | . . . . . . . . . . . 1 . Emergency Access Points 1 | . . . . . 1 . . . . . . . Alert Level 2 | . . . . . 2 . . . . . . . Unreport Threat 3 | . . . . . 1 . . . 2 . . . Locate Traps 2 | . 1 . . . 1 . . . . . . . Transport Status 1 | . . . . . 1 . . . . . . . Recall Reinforcements 1 | . . . . . . . . . 1 . . . Hauler Manifests 1 | . . . . . 1 . . . . . . . Registered Components 1 | . . . . . 1 . . . . . . . Garrison Registry 1 | . . . . . . . . 1 . . . . Fabricator Hacks . | . . . . . . . . . . . . . Repair Station Hacks 2 | . . . . . . . . . . . 2 . Scan Component 1 | . . . . . . . . . . . 1 . Repair 1 | . . . . . . . . . . . 1 . Recycling Unit Hacks . | . . . . . . . . . . . . . Scanalyzer . | . . . . . . . . . . . . . Garrison Access Hacks 2 | . . . . . . . 1 . 1 . . . Unlock Access 2 | . . . . . . . 1 . 1 . . . Unauthorized Hacks 3 | . 1 . . . 1 . . . 1 . . . Terminals 3 | . 1 . . . 1 . . . 1 . . . Operators 3 | . 1 . . . 1 . . . 1 . . . Fabricators . | . . . . . . . . . . . . . Repair Stations . | . . . . . . . . . . . . . Recycling Units . | . . . . . . . . . . . . . Scanalyzers . | . . . . . . . . . . . . . Garrison Access . | . . . . . . . . . . . . . Data Cores Recovered 1 | . . . . . . . . . 1 . . . Used . | . . . . . . . . . . . . . Hacking Detections 20 | . 3 . . . 6 5 1 2 3 . . . Full Trace Events 2 | . . . . . 1 . . 1 . . . . Feedback Events . | . . . . . . . . . . . . . Feedback Blocked . | . . . . . . . . . . . . . Robot Schematics Acquired . | . . . . . . . . . . . . . Robots Built . | . . . . . . . . . . . . . Authchips . | . . . . . . . . . . . . . Time . | . . . . . . . . . . . . . Total Robot Build Rating . | . . . . . . . . . . . . . Part Schematics Acquired . | . . . . . . . . . . . . . Parts Built . | . . . . . . . . . . . . . Authchips . | . . . . . . . . . . . . . Time . | . . . . . . . . . . . . . Total Part Build Rating . | . . . . . . . . . . . . . Parts Repaired 1 | . . . . . . . . . . . 1 . Time 68 | . . . . . . . . . . . 68 . Parts Recycled . | . . . . . . . . . . . . . Recycled Matter . | . . . . . . . . . . . . . Retrieved Matter . | . . . . . . . . . . . . . Retrieved Components . | . . . . . . . . . . . . . Parts Scanalyzed . | . . . . . . . . . . . . . Part Schematics Acquired . | . . . . . . . . . . . . . Parts Damaged . | . . . . . . . . . . . . . Bothacking | -11 -10 -10 -10 -9 -8 -7 -6 -6 -6 -6 -5 -4 ------------ Run | Yrd Mat Min Exi Min Mat Fac Fac Gar Fac Gar Fac Fac Used RIF Installer 2 | . . . . . . . . 1 . 1 . . Zone Cloak 1 | . . . . . . . . . . 1 . . Robots Hacked 11 | . . . . . . . . . 3 4 4 . Non-combat 1 | . . . . . . . . . 1 . . . Combat 10 | . . . . . . . . . 2 4 4 . Robot Hacks Applied 16 | . . . . . . . . . 7 5 4 . purge_threat 4 | . . . . . . . . . 4 . . . summon_haulers 1 | . . . . . . . . . 1 . . . reboot_system 1 | . . . . . . . . . . 1 . . go_dormant 2 | . . . . . . . . . . 1 1 . overwrite_iff 4 | . . . . . . . . . 2 . 2 . formatsys_high 4 | . . . . . . . . . . 3 1 . Relay Couplers Released 29 | . . . . . . . . 22 . 7 . . Machine Destruction 29 | . . . . . . . . 22 . 7 . . Attached 7 | . . . . . . . . . 3 2 2 . Fabnet Peak Effective % . | . . . . . . . . . . . . . Robots Rewired 4 | . . . . . . . 2 2 . . . . Allies Hacked 1 | . . . . . . . . . . . . 1 Hacks Repelled . | . . . . . . . . . . . . . Allies | -11 -10 -10 -10 -9 -8 -7 -6 -6 -6 -6 -5 -4 -------- Run | Yrd Mat Min Exi Min Mat Fac Fac Gar Fac Gar Fac Fac Total Allies 17 | . . 1 . . . 3 2 2 2 4 3 . Largest Group 3 | . . 1 . . . 3 1 2 1 3 3 1 Highest-Rated Group 102 | . . 31 . . . 93 41 84 29 102 102 49 Highest-Rated Ally 49 | . . 31 . . . 31 41 46 29 38 49 49 Total Orders . | . . . . . . . . . . . . . Ally Attacks 113 | . . . . . . 45 15 21 5 5 19 3 Total Damage 2176 | . . . . . . 489 253 573 38 172 548 103 Kills 17 | . . . . . . 4 2 4 . 1 6 . Allies Corrupted . | . . . . . . . . . . . . . Allies Melted . | . . . . . . . . . . . . . Intel | -11 -10 -10 -10 -9 -8 -7 -6 -6 -6 -6 -5 -4 ------- Run | Yrd Mat Min Exi Min Mat Fac Fac Gar Fac Gar Fac Fac Robot Analysis Total . | . . . . . . . . . . . . . Derelict Logs Recovered 3 | . . 2 . 1 . . . . . . . . Drone Launches . | . . . . . . . . . . . . . Drone Recoveries . | . . . . . . . . . . . . . Exploration | -11 -10 -10 -10 -9 -8 -7 -6 -6 -6 -6 -5 -4 ------------- Run | Yrd Mat Min Exi Min Mat Fac Fac Gar Fac Gar Fac Fac Turns Passed 15180 | 85 936 912 348 427 2149 4261 716 1037 1409 1107 1031 762 Spaces Moved 7844 | 48 364 478 217 250 997 2081 411 580 766 537 543 572 Core 280 | 5 4 . . . . . . . . . . 271 Treads 5441 | 43 317 478 217 250 997 995 . 65 766 537 543 233 Legs 2063 | . 30 . . . . 1086 411 515 . . . 21 Wheels . | . . . . . . . . . . . . . Hover 47 | . . . . . . . . . . . . 47 Flight 13 | . 13 . . . . . . . . . . . Fastest Speed 50 | 50 160 160 160 160 155 120 120 120 157 157 157 50 Average Speed 153 | 148 181 160 160 160 156 168 121 124 157 157 157 100 Slowest Speed 520 | 160 520 160 160 160 240 232 190 157 157 157 157 157 Overloaded Moves . | . . . . . . . . . . . . . Propulsion Burnouts . | . . . . . . . . . . . . . Robots Hopped . | . . . . . . . . . . . . . Cave-ins Triggered . | . . . . . . . . . . . . . Exploration Rate (%) 41 | 5 56 95 63 53 71 55 9 57 16 38 10 14 Regions Visited 12 Branch Regions 3 Pre-discovered Areas 1 | . . . . 1 . . . . . . . . Known Exits Taken 3 | . . . . . . . 1 . 1 . 1 . Unknown Exits Taken 7 | 1 1 1 1 1 1 1 . . . . . . Scrap Searched 1 | . . 1 . . . . . . . . . . Spaces Dug 2 | . . . . . . . . . . 2 . . Terrain Destroyed 352 | . . 37 . . 35 99 75 57 23 14 . 12 Melee . | . . . . . . . . . . . . . Projectile 83 | . . . . . 6 4 12 12 23 14 . 12 AOE 269 | . . 37 . . 29 95 63 45 . . . . Terrain Rammed . | . . . . . . . . . . . . . Walls Destroyed . | . . . . . . . . . . . . . Machines Disabled . | . . . . . . . . . . . . . Actions | -11 -10 -10 -10 -9 -8 -7 -6 -6 -6 -6 -5 -4 --------- Run | Yrd Mat Min Exi Min Mat Fac Fac Gar Fac Gar Fac Fac Total 10201 | 62 550 613 218 277 1444 2612 562 813 929 726 713 682 Wait 1247 | . 82 123 . 28 296 267 37 39 97 123 128 27 Move 7833 | 47 363 477 216 249 996 2080 411 579 765 536 542 572 Hop . | . . . . . . . . . . . . . Pick Up 207 | 8 22 3 1 . 33 60 17 26 7 4 15 11 Fast Attach . | . . . . . . . . . . . . . Attach 158 | 6 11 1 . . 18 42 16 21 13 5 12 13 Detach 15 | . . 1 . . 1 1 1 7 3 . 1 . Swap 24 | . 1 1 . . 4 9 2 5 1 . . 1 Drop 147 | 1 5 . 1 . 24 47 14 27 8 5 5 10 Fire 506 | . 64 7 . . 71 105 37 80 35 53 10 44 Melee . | . . . . . . . . . . . . . Ram 3 | . . . . . . . . . . . . 3 Kick 4 | . . . . . . . . 4 . . . . Crush 5 | . 2 . . . 1 1 . . . . . 1 Escape Stasis 7 | . . . . . . . . 7 . . . . Rewire 45 | . . . . . . . 27 18 . . . . Trap . | . . . . . . . . . . . . . Miscellaneous . | . . . . . . . . . . . . . Route ------- -11/Scrapyard -10/Materials (discovered 3 exits: [*Mat] / [*Min x2]) -10/Mines (discovered 3 exits: [*Mat x2] / *Exi) -10/Exiles -9/Mines -8/Materials (discovered 2 exits: *Fac x2) -7/Factory (discovered 4 exits: *Fac x2 / [*Low x2]) -6/Factory -6/Garrison (discovered 3 exits: *Fac x3) -6/Factory -6/Garrison -5/Factory (discovered 4 exits: *Fac x4) -4/Factory History --------- Turn | Location | Event 4 | -11/Scrapyard | Discovered new exit (range 15) 86 | -11/Scrapyard | Entered Materials 158 | -10/Materials | Discovered new exit (range 8) 315 | -10/Materials | Build established: Mutant 327 | -10/Materials | Discovered new exit (range 16) 686 | -10/Materials | Derelicts attacked the area 795 | -10/Materials | Core integrity fell below 50% 911 | -10/Materials | Discovered new exit (range 15) 1022 | -10/Materials | Entered Mines 1033 | -10/Mines | Met a Derelict bent on vengeance 1046 | -10/Mines | A weapon hastily lodged in a ceiling crevice suddenly fell to the ground 1079 | -10/Mines | Learned Materials non-interactive machine intel 1180 | -10/Mines | Received a Mining Laser from a helpful Derelict 1198 | -10/Mines | Learned Materials emergency access door positions 1659 | -10/Mines | Discovered new exit (range 8) 1713 | -10/Mines | Discovered new exit (range 12) 1891 | -10/Mines | Found a damaged Exp. Sensor Array with a note attached 1899 | -10/Mines | Found Prototype Device 1900 | -10/Mines | Identified Exp. Sensor Array 1926 | -10/Mines | Deemed a non-threat by the Exiles lab entrance 1927 | -10/Mines | Discovered new exit (range 5) 1934 | -10/Mines | Entered Exiles 1974 | -10/Exiles | Met 8R-AWN 2000 | -10/Exiles | Met EX-HEX 2043 | -10/Exiles | Met EX-BIN 2067 | -10/Exiles | Aligned with FarCom system 2069 | -10/Exiles | Given EX-Vault access code 2112 | -10/Exiles | Opened EX-Vault 2126 | -10/Exiles | Found Prototype Ballistic Gun 2162 | -10/Exiles | Warned to stay clear of 0b10 Research branches 2179 | -10/Exiles | Exiles lab attacked by MAIN.C 2261 | -10/Exiles | Discovered new exit (range 15) 2282 | -10/Exiles | Left Exiles lab with AWS/Gauss 2282 | -10/Exiles | Entered Mines 2387 | -9/Mines | Learned location of Storage (-9) 2675 | -9/Mines | Discovered new exit (range 15) 2684 | -9/Mines | YI-UF0 nonchalantly dropped a Grenade Launcher on the ground 2709 | -9/Mines | Entered Materials 2709 | -8/Materials | Evolved 4 slots: Propulsion x1, Utility x2, Weapon x1 2711 | -8/Materials | Loaded intel: 27 non-interactive machine locations 3032 | -8/Materials | Build established: Skirmisher 3615 | -8/Materials | Destroyed 9 combat bots 3618 | -8/Materials | Lost 3 parts (2n1w) 3850 | -8/Materials | Discovered new exit (range 16) 4777 | -8/Materials | Core integrity fell below 50% 4822 | -8/Materials | Discovered new exit (range 16) 4858 | -8/Materials | Entered Factory 4858 | -7/Factory | Evolved 2 slots: Utility x2 5172 | -7/Factory | Build established: Gunner 6261 | -7/Factory | Allied Derelicts emerged from ambush trap array 6748 | -7/Factory | Discovered new exit (range 15) 7114 | -7/Factory | System corruption reached 10% 7149 | -7/Factory | Lost 3 parts (1p1u1w) 7226 | -7/Factory | Discovered new exit (range 6) 7715 | -7/Factory | Discovered new exit (range 16) 8256 | -7/Factory | Build established: Skirmisher 8458 | -7/Factory | First assault squad dispatched 8921 | -7/Factory | Discovered new exit (range 6) 9112 | -7/Factory | Build established: Hacker-Skirmisher 9119 | -7/Factory | Entered another Factory area 9119 | -6/Factory | Evolved 2 slots: Propulsion x1, Utility x1 9469 | -6/Factory | First assault squad dispatched 9835 | -6/Factory | Identified exit to Garrison 9835 | -6/Factory | Entered Garrison 9861 | -6/Garrison | Triggered checkpoint 9879 | -6/Garrison | Build established: Hacker-Gunner 9907 | -6/Garrison | Identified AWS/Gauss 9945 | -6/Garrison | Garrison Relay disabled 10049 | -6/Garrison | Discovered new exit (range 55) 10049 | -6/Garrison | Discovered new exit (range 62) 10049 | -6/Garrison | Discovered new exit (range 55) 10149 | -6/Garrison | Triggered checkpoint 10373 | -6/Garrison | Installed Relay Interface Framework 10493 | -6/Garrison | Build established: Hacker-Skirmisher 10498 | -6/Garrison | Garrison Relay disabled 10500 | -6/Garrison | Garrison Relay disabled 10500 | -6/Garrison | Garrison Relay disabled 10508 | -6/Garrison | Garrison Relay disabled 10617 | -6/Garrison | Triggered checkpoint 10627 | -6/Garrison | Triggered checkpoint 10689 | -6/Garrison | Destroyed 11 combat bots 10872 | -6/Garrison | Entered Factory 11222 | -6/Factory | First assault squad dispatched 12108 | -6/Factory | Build established: Bothacker-Skirmisher 12271 | -6/Factory | Identified exit to Garrison 12281 | -6/Factory | Entered Garrison 12439 | -6/Garrison | Triggered checkpoint 12618 | -6/Garrison | Garrison Relay disabled 13005 | -6/Garrison | Triggered checkpoint 13040 | -6/Garrison | Expanded RIF knowledge: Zone Cloak 13146 | -6/Garrison | Discovered new exit (range 12) 13213 | -6/Garrison | Triggered checkpoint 13241 | -6/Garrison | Rescued a captive Derelict 13273 | -6/Garrison | Garrison Relay disabled 13377 | -6/Garrison | Identified exit to Factory 13388 | -6/Garrison | Entered Factory 13388 | -5/Factory | Accompanied by 3 allies 13388 | -5/Factory | Evolved 2 slots: Utility x1, Weapon x1 13834 | -5/Factory | Lost 3 allies 14035 | -5/Factory | Repaired Arm. Heavy Treads 14231 | -5/Factory | Identified exit to Factory 14419 | -5/Factory | Entered another Factory area 14419 | -4/Factory | Accompanied by 1 ally 14419 | -4/Factory | Evolved 2 slots: Power x1, Utility x1 14788 | -4/Factory | P-70 Sage assimilated allied Sentinel 6a 14938 | -4/Factory | System corruption reached 10% 14968 | -4/Factory | Lost 10 parts (2n3u5w) 15095 | -4/Factory | Core integrity fell below 50% 15160 | -4/Factory | Core integrity fell below 20% 15170 | -4/Factory | Build established: Hacker-Mutant 15181 | -4/Factory | Spotted B-86 Titan 15181 | -4/Factory | Destroyed by B-86 Titan with Railgun Last Messages --------------- 15111_ Relay Coupler [Sentry] destroyed. 15131_ ESM6QU%CK,BLH1LAX>7CI%|W0K 15135_ ALERT: Hostiles spotted, dispatching reinforcements to Terminal F009. 15139_ ALERT: Cargo convoy en route, clear transfer corridor. 15142_ Slammed into S-27 Virus. 15142_ Adv. Signal Interpreter destroyed. 15142_ System corrupted by crushing effect (+5). 15144_ Slammed into S-27 Virus. 15149_ System corrupted: Matter fused (-6). 15149_ K-01 Serf cleans the Subcomponent Replicator. 15152_ Imp. Coolant Injector destroyed. 15155_ K-01 Serf cleans the Subcomponent Replicator. 15169_ System corrupted: Energy discharge (-29). 15181_ Matter Pump disabled. 15181_ Slug penetrates Matter Pump. 15181_ Penetrated by Slug. Map ----- +----------------------------------------------------+ | ???????????????????? """ #??????????????????? | | ?????????????????# ? #??????????????????? | | ?????????????????# """ #??????????????????? | | ?????????????????# """ #??????????????????? | | ?????????????????# """ #################### | | ?????????????????# | | ?????????????????# """ ###### | | ??????????????"" # """ = #????? | | ??????????????"" + """ s #????# | | ?????????????????# s #????# | | ?????????????????# """ s###############/###????# | | ???????????##+#### """ #????????????? ?????# | | ?????????? g"""g #???????????? ???# | | ?????????? #??????????? ??# | | ?????????? #??????????? ? | | ?????????? =! #?????????? # | | ?????????? ! s########?p # | | ???????????# T#### s +?? # | | ?????????????????# """ #?? # | | ?????????????????# """ #?? # | | ?????????????????# """ +?? # | | ?????????????????# ########?#############+# | | ?????????????????# """ #????????h?????????????? | | ?????????????????# """ #???????????h??????????? | | ?????????????????# """ #??????????????????????? | | ?????????????????# @#??????????????????????? | | ?????????????????# """ ?????????????????????? | | ?????????????????# ""% k ???????????????????? | | ?????????????????# "%% +??????????????????? | | ?????????????????# #??????????????????? | | ?????????????????# #??????????????????? | | ?????????????????##BB######## #??????????????????? | | ??????????????????#BB???????? #??????????????????? | | ??????????????????##??????????#??????????????????? | | ?????????????????????????????????????????????????? | | ?????????????????????????????????????????????????? | | ?????????????????????????????????????????????????? | | ?????????????????????????????????????????????????? | | ?????????????????????????????????????????????????? | | ?????????????????????????????????????????????????? | | ?????????????????????????????????????????????????? | | ?????????????????????????????????????????????????? | | ?????????????????????????????????????????????????? | | ?????????????????????????????????????????????????? | | ?????????????????????????????????????????????????? | | ?????????????????????????????????????????????????? | | ?????????????????????????????????????????????????? | | ?????????????????????????????????????????????????? | | ?????????????????????????????????????????????????? | | ?????????????????????????????????????????????????? | +----------------------------------------------------+ Best States ------------- Heat Dissipation 62 Coolant Potential 80 Energy Generation 23 Energy Capacity 340 Matter Stores 300 Matter Capacity 300 Sight Range 16 Terrain Scan Density 10 Armor Coverage 225 Evasion (%) 55 Targeting Accuracy 16 Core Analysis 6 Recoil Reduction 4 Kinecelleration 30 Offensive Hacking 26 Defensive Hacking 22 Relay Coupler Types 1 Relay Coupler Value 26 Item Schematics ----------------- None Robot Schematics ------------------ None Fabricated ------------ Nothing Alien Tech Used ----------------- None Achievements -------------- Infiltrator Challenges ------------ None Game ------ Seed ConcussiveOpticalCalibrator Manual? 0 Play Time 02:00:35 Cumulative 63.7 hours Start 2024.04.15 @ 02:42:58 End 2024.04.15 @ 19:20:24 Sessions 3 Manual Loads 0 Difficulty Rogue Special Mode None Game No. 55 Rogue 55 Adventurer 0 Explorer 0 Win Type - Total 0 Types 0/0/0/0/0/0/0/0/0 Lore% 37 Gallery% 48 Achievement% 30 Wizard Run 0 Options --------- Layout 1 ASCII 0 Keyboard 0 Movement Numpad Keybinds 0 Fullscreen 1 Font 24/Smallcaps Map View 50x35 Zoom Use 0% Tactical HUD 1 Map Filters NONE Filters NONE Steam 1 RUN: d26dcc2c-9678-4e64-a840-8f7a843d5c04